[Event "Early-Titled-Tuesday-Blitz-February-06-2024"]
[Site "Chess.com"]
[Date "2024.02.06"]
[Round "3"]
[White "MatthewG-p4p"]
[Black "SaqoChess_Twitch"]
[Result "1/2-1/2"]
[WhiteElo "2812"]
[BlackElo "2609"]
[TimeControl "180+1"]
[EndTime "8:29:46 PST"]
[Termination "Game drawn - insufficient material"]

1. e4 {[%clk 0:03:00.9]} 1... c5 {[%clk 0:02:59.7]} 2. c3 {[%clk 0:02:50.3]}
2... d5 {[%clk 0:02:59.4]} 3. exd5 {[%clk 0:02:49.7]} 3... Qxd5 {[%clk 0:03:00]}
4. d4 {[%clk 0:02:50]} 4... Nf6 {[%clk 0:02:55.6]} 5. Nf3 {[%clk 0:02:49.5]}
5... Bg4 {[%clk 0:02:55.3]} 6. dxc5 {[%clk 0:02:48.8]} 6... Qxc5 {[%clk
0:02:45.4]} 7. Be3 {[%clk 0:02:48.2]} 7... Qc8 {[%clk 0:02:37.7]} 8. h3 {[%clk
0:02:46.7]} 8... Bh5 {[%clk 0:02:29.5]} 9. g4 {[%clk 0:02:30.3]} 9... Bg6 {[%clk
0:02:27.9]} 10. Ne5 {[%clk 0:02:29.7]} 10... Be4 {[%clk 0:02:20.7]} 11. f3
{[%clk 0:02:26.2]} 11... Bc6 {[%clk 0:02:09.1]} 12. Bg2 {[%clk 0:02:15.3]} 12...
e6 {[%clk 0:01:59.5]} 13. Nxc6 {[%clk 0:02:13.4]} 13... Nxc6 {[%clk 0:01:59.4]}
14. O-O {[%clk 0:02:10.4]} 14... Nd5 {[%clk 0:01:50.8]} 15. Bd2 {[%clk 0:01:59]}
15... Bc5+ {[%clk 0:01:50.2]} 16. Kh1 {[%clk 0:01:58.5]} 16... O-O {[%clk
0:01:45.3]} 17. Qe2 {[%clk 0:01:54.8]} 17... Rd8 {[%clk 0:01:44.4]} 18. b4
{[%clk 0:01:53.6]} 18... Bb6 {[%clk 0:01:43.4]} 19. f4 {[%clk 0:01:45.5]} 19...
a5 {[%clk 0:01:37.3]} 20. b5 {[%clk 0:01:45.1]} 20... Nce7 {[%clk 0:01:31.9]}
21. a4 {[%clk 0:01:32.2]} 21... Qc7 {[%clk 0:01:21]} 22. Qf3 {[%clk 0:01:15]}
22... h5 {[%clk 0:01:11.4]} 23. Na3 {[%clk 0:01:11.8]} 23... hxg4 {[%clk
0:01:09.5]} 24. hxg4 {[%clk 0:01:11.7]} 24... f6 {[%clk 0:00:50.9]} 25. Bh3
{[%clk 0:00:58.1]} 25... Kf7 {[%clk 0:00:48.6]} 26. Rae1 {[%clk 0:00:48.7]}
26... Rh8 {[%clk 0:00:48.2]} 27. Re2 {[%clk 0:00:30.9]} 27... f5 {[%clk
0:00:45.4]} 28. Rfe1 {[%clk 0:00:27]} 28... Nf6 {[%clk 0:00:25.8]} 29. Rxe6
{[%clk 0:00:18.1]} 29... Ng6 {[%clk 0:00:25.6]} 30. gxf5 {[%clk 0:00:14.4]}
30... Nh4 {[%clk 0:00:23.8]} 31. Re7+ {[%clk 0:00:11.7]} 31... Qxe7 {[%clk
0:00:23.2]} 32. Rxe7+ {[%clk 0:00:12.6]} 32... Kxe7 {[%clk 0:00:22.7]} 33. Qxb7+
{[%clk 0:00:13.5]} 33... Nd7 {[%clk 0:00:19.3]} 34. f6+ {[%clk 0:00:14.1]} 34...
Kxf6 {[%clk 0:00:18.1]} 35. Qxd7 {[%clk 0:00:14.2]} 35... Rae8 {[%clk
0:00:07.3]} 36. Qd6+ {[%clk 0:00:09.3]} 36... Kf7 {[%clk 0:00:07.7]} 37. Qxb6
{[%clk 0:00:10]} 37... Nf3 {[%clk 0:00:08.4]} 38. Qc7+ {[%clk 0:00:06.5]} 38...
Re7 {[%clk 0:00:08.4]} 39. Qc4+ {[%clk 0:00:07.2]} 39... Kf8 {[%clk 0:00:06.4]}
40. Qc8+ {[%clk 0:00:06.8]} 40... Re8 {[%clk 0:00:06.4]} 41. Qf5+ {[%clk
0:00:07.4]} 41... Kg8 {[%clk 0:00:07.1]} 42. Kg2 {[%clk 0:00:06.8]} 42... Nh4+
{[%clk 0:00:07.5]} 43. Kg3 {[%clk 0:00:06.3]} 43... Nxf5+ {[%clk 0:00:08.4]} 44.
Bxf5 {[%clk 0:00:07.2]} 44... Rh6 {[%clk 0:00:08.9]} 45. Nc4 {[%clk 0:00:05.9]}
45... Rf6 {[%clk 0:00:08.8]} 46. Bg4 {[%clk 0:00:05]} 46... Re4 {[%clk
0:00:08.7]} 47. Ne5 {[%clk 0:00:03.7]} 47... Rxa4 {[%clk 0:00:09.1]} 48. c4
{[%clk 0:00:02.8]} 48... Ra2 {[%clk 0:00:09.2]} 49. Be3 {[%clk 0:00:03]} 49...
Rb2 {[%clk 0:00:09.2]} 50. Bf3 {[%clk 0:00:01.9]} 50... a4 {[%clk 0:00:09.5]}
51. Bd5+ {[%clk 0:00:02.6]} 51... Kh7 {[%clk 0:00:09]} 52. b6 {[%clk 0:00:03.5]}
52... a3 {[%clk 0:00:09]} 53. c5 {[%clk 0:00:04.2]} 53... a2 {[%clk 0:00:08.8]}
54. Bxa2 {[%clk 0:00:04.6]} 54... Rxa2 {[%clk 0:00:09.7]} 55. b7 {[%clk
0:00:04.9]} 55... Rb2 {[%clk 0:00:10.3]} 56. c6 {[%clk 0:00:05.5]} 56... Rxc6
{[%clk 0:00:10.3]} 57. Nxc6 {[%clk 0:00:05.5]} 57... Rxb7 {[%clk 0:00:11.1]} 58.
Ne5 {[%clk 0:00:06.2]} 58... Kg8 {[%clk 0:00:10.2]} 59. Kg4 {[%clk 0:00:06.6]}
59... Rb5 {[%clk 0:00:10.1]} 60. Bd4 {[%clk 0:00:06.9]} 60... Kh7 {[%clk
0:00:10.1]} 61. Kf5 {[%clk 0:00:07.1]} 61... Ra5 {[%clk 0:00:08.9]} 62. Be3
{[%clk 0:00:07.1]} 62... Ra6 {[%clk 0:00:09.2]} 63. Ke4 {[%clk 0:00:07.2]} 63...
Rf6 {[%clk 0:00:09.5]} 64. Ng4 {[%clk 0:00:07.5]} 64... Ra6 {[%clk 0:00:10]} 65.
Bd4 {[%clk 0:00:07.9]} 65... Ra4 {[%clk 0:00:10]} 66. Ne3 {[%clk 0:00:08.6]}
66... Kh6 {[%clk 0:00:09.6]} 67. Nd5 {[%clk 0:00:09.1]} 67... g5 {[%clk
0:00:09.3]} 68. f5 {[%clk 0:00:08.5]} 68... g4 {[%clk 0:00:09.7]} 69. Nc3 {[%clk
0:00:08.1]} 69... Rb4 {[%clk 0:00:08.5]} 70. Ke5 {[%clk 0:00:04.7]} 70... g3
{[%clk 0:00:08]} 71. Ne2 {[%clk 0:00:02.7]} 71... g2 {[%clk 0:00:08.2]} 72. Be3+
{[%clk 0:00:03.5]} 72... Kh5 {[%clk 0:00:08.3]} 73. Nf4+ {[%clk 0:00:04.1]}
73... Kg4 {[%clk 0:00:06.5]} 74. Nxg2 {[%clk 0:00:04.7]} 74... Kf3 {[%clk
0:00:07.2]} 75. Bc5 {[%clk 0:00:03.8]} 75... Rb5 {[%clk 0:00:05.4]} 76. Kd5
{[%clk 0:00:02.6]} 76... Kxg2 {[%clk 0:00:05.8]} 77. f6 {[%clk 0:00:03.3]} 77...
Rb7 {[%clk 0:00:06.1]} 78. Be7 {[%clk 0:00:03]} 78... Rb1 {[%clk 0:00:04.5]} 79.
f7 {[%clk 0:00:01.7]} 79... Rf1 {[%clk 0:00:04.7]} 80. Ke6 {[%clk 0:00:02.6]}
80... Rxf7 {[%clk 0:00:05.2]} 81. Kxf7 {[%clk 0:00:03.5]} 1/2-1/2

[Event "Early-Titled-Tuesday-Blitz-February-06-2024"]
[Site "Chess.com"]
[Date "2024.02.06"]
[Round "3"]
[White "YurasovMat-2012"]
[Black "Kotlyar_K"]
[Result "0-1"]
[WhiteElo "2654"]
[BlackElo "2469"]
[TimeControl "180+1"]
[EndTime "8:29:46 PST"]
[Termination "Kotlyar_K won on time"]

1. e4 {[%clk 0:02:47.6]} 1... c6 {[%clk 0:02:59.7]} 2. Nf3 {[%clk 0:02:46]} 2...
d5 {[%clk 0:02:59.8]} 3. d3 {[%clk 0:02:44.9]} 3... Qc7 {[%clk 0:02:59.9]} 4.
Nbd2 {[%clk 0:02:42.5]} 4... e5 {[%clk 0:02:46.7]} 5. g3 {[%clk 0:02:41.4]} 5...
dxe4 {[%clk 0:02:43.1]} 6. dxe4 {[%clk 0:02:41]} 6... Nf6 {[%clk 0:02:41.1]} 7.
Bg2 {[%clk 0:02:40.8]} 7... h6 {[%clk 0:02:41]} 8. O-O {[%clk 0:02:41.3]} 8...
Be6 {[%clk 0:02:41.3]} 9. Qe2 {[%clk 0:02:40.9]} 9... Nbd7 {[%clk 0:02:41.1]}
10. Rd1 {[%clk 0:02:41.4]} 10... Be7 {[%clk 0:02:39.1]} 11. b3 {[%clk 0:02:42]}
11... O-O {[%clk 0:02:39.5]} 12. Bb2 {[%clk 0:02:42.5]} 12... Bc5 {[%clk
0:02:18.3]} 13. h3 {[%clk 0:02:37.1]} 13... b5 {[%clk 0:02:13.9]} 14. Nf1 {[%clk
0:02:33.1]} 14... Rfd8 {[%clk 0:02:08.9]} 15. N3d2 {[%clk 0:02:31.9]} 15... a5
{[%clk 0:02:00.4]} 16. a3 {[%clk 0:02:28.6]} 16... Rac8 {[%clk 0:01:56.8]} 17.
Ne3 {[%clk 0:02:27.3]} 17... Qb6 {[%clk 0:01:52.1]} 18. Nf5 {[%clk 0:02:21.4]}
18... Bxf5 {[%clk 0:01:50]} 19. exf5 {[%clk 0:02:22.3]} 19... Re8 {[%clk
0:01:34.1]} 20. c3 {[%clk 0:02:11.2]} 20... Rcd8 {[%clk 0:01:26.8]} 21. b4
{[%clk 0:02:10.3]} 21... Bf8 {[%clk 0:01:25.4]} 22. Nf1 {[%clk 0:02:09.4]} 22...
e4 {[%clk 0:01:22.3]} 23. bxa5 {[%clk 0:02:05.7]} 23... Qxa5 {[%clk 0:01:22.1]}
24. c4 {[%clk 0:02:06.3]} 24... bxc4 {[%clk 0:01:10.4]} 25. Qxc4 {[%clk
0:01:51.8]} 25... Qxf5 {[%clk 0:01:09]} 26. Qxc6 {[%clk 0:01:49.3]} 26... Rc8
{[%clk 0:01:06.5]} 27. Qa6 {[%clk 0:01:38.5]} 27... Nc5 {[%clk 0:00:49.7]} 28.
Qe2 {[%clk 0:01:35]} 28... Nd3 {[%clk 0:00:47.9]} 29. Ne3 {[%clk 0:01:33.1]}
29... Qe6 {[%clk 0:00:41.9]} 30. Bd4 {[%clk 0:01:28.9]} 30... Rcd8 {[%clk
0:00:37]} 31. Bc3 {[%clk 0:01:05.5]} 31... Bc5 {[%clk 0:00:36.9]} 32. a4 {[%clk
0:01:03.6]} 32... Nd5 {[%clk 0:00:34.1]} 33. Bd2 {[%clk 0:01:02.7]} 33... Qf6
{[%clk 0:00:24]} 34. a5 {[%clk 0:00:42.5]} 34... Bd4 {[%clk 0:00:22.6]} 35. Ra3
{[%clk 0:00:31.1]} 35... Bc5 {[%clk 0:00:17.7]} 36. Raa1 {[%clk 0:00:25.8]}
36... Bd4 {[%clk 0:00:16.9]} 37. Rab1 {[%clk 0:00:23.9]} 37... Nc3 {[%clk
0:00:14.1]} 38. Bxc3 {[%clk 0:00:23.6]} 38... Bxc3 {[%clk 0:00:15]} 39. Rf1
{[%clk 0:00:12.8]} 39... Bxa5 {[%clk 0:00:14.3]} 40. Rb5 {[%clk 0:00:11]} 40...
Bc7 {[%clk 0:00:07.3]} 41. Qg4 {[%clk 0:00:06.3]} 41... Be5 {[%clk 0:00:03.5]}
42. Qxe4 {[%clk 0:00:05]} 42... Bc3 {[%clk 0:00:02.6]} 43. Qh7+ {[%clk 0:00:05]}
43... Kf8 {[%clk 0:00:02.5]} 44. Qh8+ {[%clk 0:00:05]} 44... Ke7 {[%clk
0:00:03.1]} 45. Rb7+ {[%clk 0:00:05.1]} 45... Kd6 {[%clk 0:00:03.5]} 46. Qh7
{[%clk 0:00:05.3]} 46... g6 {[%clk 0:00:03.3]} 47. Qxf7 {[%clk 0:00:03.3]} 47...
Qxf7 {[%clk 0:00:02.4]} 48. Rxf7 {[%clk 0:00:04.2]} 48... Re7 {[%clk 0:00:03.1]}
49. Rxe7 {[%clk 0:00:04.5]} 49... Kxe7 {[%clk 0:00:04]} 50. Nd5+ {[%clk
0:00:04.6]} 50... Rxd5 {[%clk 0:00:02.5]} 51. Bxd5 {[%clk 0:00:04.2]} 51... Kf6
{[%clk 0:00:03.1]} 52. Bg2 {[%clk 0:00:04.8]} 52... Bb4 {[%clk 0:00:02.9]} 53.
Rd1 {[%clk 0:00:05.1]} 53... Ne5 {[%clk 0:00:03]} 54. Rd5 {[%clk 0:00:05.2]}
54... Be7 {[%clk 0:00:02.2]} 55. f4 {[%clk 0:00:05.7]} 55... Nf7 {[%clk
0:00:02.9]} 56. Be4 {[%clk 0:00:05.4]} 56... Nd6 {[%clk 0:00:03.6]} 57. Bc2
{[%clk 0:00:05.4]} 57... Ne8 {[%clk 0:00:03.9]} 58. Kg2 {[%clk 0:00:05.5]} 58...
Nc7 {[%clk 0:00:04.6]} 59. Rd7 {[%clk 0:00:05.6]} 59... Ne6 {[%clk 0:00:05]} 60.
Rd1 {[%clk 0:00:04.4]} 60... g5 {[%clk 0:00:04.6]} 61. fxg5+ {[%clk 0:00:04.1]}
61... hxg5 {[%clk 0:00:05.5]} 62. Kf3 {[%clk 0:00:04]} 62... Bc5 {[%clk
0:00:03.7]} 63. Kg4 {[%clk 0:00:03.8]} 63... Be7 {[%clk 0:00:03.2]} 64. Bf5
{[%clk 0:00:03.9]} 64... Ng7 {[%clk 0:00:02.9]} 65. Rf1 {[%clk 0:00:04.5]} 65...
Ke5 {[%clk 0:00:02]} 66. Bc2 {[%clk 0:00:04.2]} 66... Kd6 {[%clk 0:00:01.9]} 67.
Rf7 {[%clk 0:00:04.3]} 67... Ne8 {[%clk 0:00:02.1]} 68. Kh5 {[%clk 0:00:04.3]}
68... Ke6 {[%clk 0:00:01.5]} 69. Kg6 {[%clk 0:00:04.3]} 69... Kd6 {[%clk
0:00:02.1]} 70. Bb3 {[%clk 0:00:04.5]} 70... Nc7 {[%clk 0:00:02.7]} 71. Rf1
{[%clk 0:00:03.3]} 71... Nb5 {[%clk 0:00:03]} 72. Rd1+ {[%clk 0:00:03.3]} 72...
Kc7 {[%clk 0:00:02.8]} 73. Kf7 {[%clk 0:00:03.4]} 73... Bd6 {[%clk 0:00:02.8]}
0-1

[Event "Early-Titled-Tuesday-Blitz-February-06-2024"]
[Site "Chess.com"]
[Date "2024.02.06"]
[Round "3"]
[White "Flaccidmoves"]
[Black "PabloZarnicki"]
[Result "1/2-1/2"]
[WhiteElo "2431"]
[BlackElo "2615"]
[TimeControl "180+1"]
[EndTime "8:30:26 PST"]
[Termination "Game drawn by 50-move rule"]

1. d4 {[%clk 0:03:00.9]} 1... Nf6 {[%clk 0:02:59.1]} 2. c4 {[%clk 0:03:00.8]}
2... g6 {[%clk 0:02:58.3]} 3. Nc3 {[%clk 0:03:01.2]} 3... Bg7 {[%clk 0:02:58.9]}
4. e4 {[%clk 0:03:01.4]} 4... d6 {[%clk 0:02:59.5]} 5. Nf3 {[%clk 0:03:02]} 5...
O-O {[%clk 0:03:00]} 6. h3 {[%clk 0:03:02.7]} 6... c5 {[%clk 0:02:59.4]} 7. d5
{[%clk 0:03:03]} 7... b5 {[%clk 0:02:59.5]} 8. cxb5 {[%clk 0:03:02.1]} 8... a6
{[%clk 0:03:00.1]} 9. bxa6 {[%clk 0:02:54.7]} 9... Qa5 {[%clk 0:02:59.4]} 10.
Bd3 {[%clk 0:02:48.2]} 10... Bxa6 {[%clk 0:02:57.3]} 11. O-O {[%clk 0:02:44.4]}
11... Bxd3 {[%clk 0:02:56.7]} 12. Qxd3 {[%clk 0:02:44.3]} 12... Nfd7 {[%clk
0:02:57.1]} 13. Bg5 {[%clk 0:02:31.6]} 13... Re8 {[%clk 0:02:56.5]} 14. a4
{[%clk 0:02:15]} 14... Na6 {[%clk 0:02:53.4]} 15. Nd2 {[%clk 0:02:02.4]} 15...
h6 {[%clk 0:02:48.7]} 16. Nc4 {[%clk 0:01:53.3]} 16... Qb4 {[%clk 0:02:45.9]}
17. Bd2 {[%clk 0:01:51.2]} 17... Nb6 {[%clk 0:02:19]} 18. Nxb6 {[%clk
0:01:37.3]} 18... Qxb6 {[%clk 0:02:19.9]} 19. a5 {[%clk 0:01:34.6]} 19... Qb3
{[%clk 0:01:51.4]} 20. Rfb1 {[%clk 0:01:20.9]} 20... Nb4 {[%clk 0:01:39.1]} 21.
Qb5 {[%clk 0:00:54.4]} 21... Reb8 {[%clk 0:01:38.2]} 22. Qa4 {[%clk 0:00:53.1]}
22... Nc2 {[%clk 0:01:10.5]} 23. Qxb3 {[%clk 0:00:48.4]} 23... Rxb3 {[%clk
0:01:11.4]} 24. Ra4 {[%clk 0:00:46]} 24... Ra6 {[%clk 0:01:02.8]} 25. Kf1 {[%clk
0:00:35.7]} 25... f5 {[%clk 0:00:41.3]} 26. exf5 {[%clk 0:00:30.3]} 26... gxf5
{[%clk 0:00:42.2]} 27. Ke2 {[%clk 0:00:24.5]} 27... Nd4+ {[%clk 0:00:41.2]} 28.
Kd1 {[%clk 0:00:22.2]} 28... Kf7 {[%clk 0:00:40.3]} 29. Be3 {[%clk 0:00:16.4]}
29... Nb5 {[%clk 0:00:34.5]} 30. Nxb5 {[%clk 0:00:12.5]} 30... Rxb5 {[%clk
0:00:34.1]} 31. Bd2 {[%clk 0:00:12.1]} 31... Rxb2 {[%clk 0:00:29]} 32. Rxb2
{[%clk 0:00:11.6]} 32... Bxb2 {[%clk 0:00:29.9]} 33. Kc2 {[%clk 0:00:12.3]}
33... Bd4 {[%clk 0:00:29.8]} 34. f3 {[%clk 0:00:11.6]} 34... e6 {[%clk
0:00:29.8]} 35. dxe6+ {[%clk 0:00:11.1]} 35... Kxe6 {[%clk 0:00:30.7]} 36. Kd3
{[%clk 0:00:09.3]} 36... Kd5 {[%clk 0:00:28.4]} 37. Bxh6 {[%clk 0:00:09.6]}
37... Kc6 {[%clk 0:00:20.8]} 38. Bd2 {[%clk 0:00:10]} 38... d5 {[%clk
0:00:19.5]} 39. h4 {[%clk 0:00:10.5]} 39... Bf2 {[%clk 0:00:19.2]} 40. h5 {[%clk
0:00:10.5]} 40... c4+ {[%clk 0:00:19.7]} 41. Ke2 {[%clk 0:00:11]} 41... Bd4
{[%clk 0:00:19.5]} 42. h6 {[%clk 0:00:10.8]} 42... Bf6 {[%clk 0:00:17.7]} 43. g4
{[%clk 0:00:10.6]} 43... fxg4 {[%clk 0:00:17.1]} 44. fxg4 {[%clk 0:00:10.8]}
44... Kb5 {[%clk 0:00:17.8]} 45. Rb4+ {[%clk 0:00:10.8]} 45... Kc5 {[%clk
0:00:18.4]} 46. Ra4 {[%clk 0:00:10.3]} 46... d4 {[%clk 0:00:18.8]} 47. g5 {[%clk
0:00:09.4]} 47... d3+ {[%clk 0:00:19.4]} 48. Kd1 {[%clk 0:00:09.2]} 48... Bh8
{[%clk 0:00:17]} 49. Ra2 {[%clk 0:00:07.9]} 49... c3 {[%clk 0:00:16.9]} 50. Be3+
{[%clk 0:00:08.5]} 50... Kc4 {[%clk 0:00:17.1]} 51. Bb6 {[%clk 0:00:08.6]} 51...
c2+ {[%clk 0:00:17.1]} 52. Rxc2+ {[%clk 0:00:08.6]} 52... dxc2+ {[%clk
0:00:16.8]} 53. Kxc2 {[%clk 0:00:09.5]} 53... Ra8 {[%clk 0:00:14.4]} 54. g6
{[%clk 0:00:09.8]} 54... Rg8 {[%clk 0:00:14.6]} 55. g7 {[%clk 0:00:09.4]} 55...
Bxg7 {[%clk 0:00:15.1]} 56. hxg7 {[%clk 0:00:10.2]} 56... Rxg7 {[%clk 0:00:16]}
57. Kd2 {[%clk 0:00:10.2]} 57... Kb5 {[%clk 0:00:16.2]} 58. Kd3 {[%clk
0:00:10.5]} 58... Rg4 {[%clk 0:00:16.1]} 59. Ke3 {[%clk 0:00:10.9]} 59... Ra4
{[%clk 0:00:15.8]} 60. Kd3 {[%clk 0:00:11.3]} 60... Kc6 {[%clk 0:00:16.1]} 61.
Ke3 {[%clk 0:00:11.7]} 61... Kd5 {[%clk 0:00:16.4]} 62. Kd3 {[%clk 0:00:12.1]}
62... Ra3+ {[%clk 0:00:16.6]} 63. Kc2 {[%clk 0:00:12.7]} 63... Kc4 {[%clk
0:00:17.3]} 64. Kd2 {[%clk 0:00:13]} 64... Kb5 {[%clk 0:00:16.5]} 65. Kc2 {[%clk
0:00:12.9]} 65... Rh3 {[%clk 0:00:17.4]} 66. Kd2 {[%clk 0:00:13]} 66... Kc4
{[%clk 0:00:17.8]} 67. Ke2 {[%clk 0:00:13.4]} 67... Kd5 {[%clk 0:00:17.3]} 68.
Kd2 {[%clk 0:00:13.2]} 68... Ra3 {[%clk 0:00:17.9]} 69. Kc2 {[%clk 0:00:12.9]}
69... Kc4 {[%clk 0:00:18.4]} 70. Kd2 {[%clk 0:00:13.5]} 70... Ra2+ {[%clk
0:00:18.4]} 71. Ke3 {[%clk 0:00:13.8]} 71... Kb5 {[%clk 0:00:18.9]} 72. Kd4
{[%clk 0:00:14.1]} 72... Rc2 {[%clk 0:00:19.3]} 73. Kd5 {[%clk 0:00:14.4]} 73...
Rc8 {[%clk 0:00:20.2]} 74. Kd6 {[%clk 0:00:14.6]} 74... Rc2 {[%clk 0:00:18.2]}
75. Ke5 {[%clk 0:00:14.6]} 75... Re2+ {[%clk 0:00:18.2]} 76. Kd4 {[%clk
0:00:14.8]} 76... Ra2 {[%clk 0:00:18]} 77. Ke5 {[%clk 0:00:15]} 77... Ra4 {[%clk
0:00:18.9]} 78. Kd6 {[%clk 0:00:14.6]} 78... Rc4 {[%clk 0:00:18.6]} 79. Kd5
{[%clk 0:00:14.7]} 79... Rc6 {[%clk 0:00:19.5]} 80. Kd4 {[%clk 0:00:14.8]} 80...
Rd6+ {[%clk 0:00:19.3]} 81. Kc3 {[%clk 0:00:15.1]} 81... Rd7 {[%clk 0:00:20]}
82. Kc2 {[%clk 0:00:14.8]} 82... Kc4 {[%clk 0:00:19.7]} 83. Kb2 {[%clk
0:00:14.5]} 83... Rd2+ {[%clk 0:00:19.1]} 84. Ka3 {[%clk 0:00:14.6]} 84... Kb5
{[%clk 0:00:19.6]} 85. Kb3 {[%clk 0:00:14.5]} 85... Rd3+ {[%clk 0:00:20.2]} 86.
Kc2 {[%clk 0:00:14.8]} 86... Rh3 {[%clk 0:00:20.7]} 87. Kd2 {[%clk 0:00:15.2]}
87... Kc4 {[%clk 0:00:21.3]} 88. Ke2 {[%clk 0:00:15.5]} 88... Rh6 {[%clk
0:00:19]} 89. Kd2 {[%clk 0:00:15.7]} 89... Kd5 {[%clk 0:00:19.3]} 90. Kc3 {[%clk
0:00:15.9]} 90... Rc6+ {[%clk 0:00:18.7]} 91. Kd3 {[%clk 0:00:16.2]} 91... Rf6
{[%clk 0:00:17.5]} 92. Kc3 {[%clk 0:00:16.4]} 92... Rf3+ {[%clk 0:00:17.7]} 93.
Kb4 {[%clk 0:00:16.6]} 93... Rf1 {[%clk 0:00:15.9]} 94. Kb5 {[%clk 0:00:16.6]}
94... Rb1+ {[%clk 0:00:15.8]} 95. Ka6 {[%clk 0:00:17.1]} 95... Kc6 {[%clk
0:00:16.2]} 96. Ka7 {[%clk 0:00:17.4]} 96... Rh1 {[%clk 0:00:14.3]} 97. Ka6
{[%clk 0:00:17.5]} 97... Rh7 {[%clk 0:00:13.9]} 98. Ba7 {[%clk 0:00:15.6]} 98...
Rb7 {[%clk 0:00:13.4]} 99. Bb6 {[%clk 0:00:15.5]} 99... Rb8 {[%clk 0:00:13.6]}
100. Ka7 {[%clk 0:00:15.8]} 100... Rc8 {[%clk 0:00:12.3]} 101. Bd4 {[%clk
0:00:11]} 101... Kb5 {[%clk 0:00:10.8]} 102. Bb6 {[%clk 0:00:10.6]} 102... Re8
{[%clk 0:00:10.3]} 103. Kb7 {[%clk 0:00:10.9]} 103... Re7+ {[%clk 0:00:10.9]}
104. Kc8 {[%clk 0:00:11.2]} 104... Kc6 {[%clk 0:00:10.7]} 105. Kd8 {[%clk
0:00:11.6]} 105... Rd7+ {[%clk 0:00:10.4]} 106. Ke8 {[%clk 0:00:11.8]} 106...
Kd6 {[%clk 0:00:10.8]} 1/2-1/2

[Event "Early-Titled-Tuesday-Blitz-February-06-2024"]
[Site "Chess.com"]
[Date "2024.02.06"]
[Round "4"]
[White "SahibSinghKnight"]
[Black "GrotBchess"]
[Result "1-0"]
[WhiteElo "2656"]
[BlackElo "2373"]
[TimeControl "180+1"]
[EndTime "8:34:03 PST"]
[Termination "SahibSinghKnight won by resignation"]

1. e4 {[%clk 0:03:00.9]} 1... e5 {[%clk 0:02:57.5]} 2. Nf3 {[%clk 0:03:00.6]}
2... Nc6 {[%clk 0:02:57.7]} 3. Bb5 {[%clk 0:03:00.1]} 3... a6 {[%clk 0:02:57.7]}
4. Ba4 {[%clk 0:02:59.7]} 4... Nf6 {[%clk 0:02:57.8]} 5. O-O {[%clk 0:02:57]}
5... Be7 {[%clk 0:02:52.7]} 6. Bxc6 {[%clk 0:02:54]} 6... dxc6 {[%clk
0:02:51.9]} 7. d3 {[%clk 0:02:54.9]} 7... Qd6 {[%clk 0:02:45.7]} 8. Nbd2 {[%clk
0:02:54.6]} 8... Be6 {[%clk 0:02:43.2]} 9. d4 {[%clk 0:02:54.5]} 9... Nd7 {[%clk
0:02:37]} 10. c3 {[%clk 0:02:54.6]} 10... f6 {[%clk 0:02:31.8]} 11. a4 {[%clk
0:02:52.1]} 11... O-O-O {[%clk 0:02:25]} 12. b3 {[%clk 0:02:51.8]} 12... g5
{[%clk 0:02:24]} 13. Ba3 {[%clk 0:02:51.1]} 13... c5 {[%clk 0:02:19.8]} 14. d5
{[%clk 0:02:51.5]} 14... Bf7 {[%clk 0:02:17]} 15. Nc4 {[%clk 0:02:51.6]} 15...
Nb6 {[%clk 0:02:04.4]} 16. Nxd6+ {[%clk 0:02:51.4]} 16... cxd6 {[%clk
0:02:05.3]} 17. a5 {[%clk 0:02:50.8]} 1-0

[Event "Early-Titled-Tuesday-Blitz-February-06-2024"]
[Site "Chess.com"]
[Date "2024.02.06"]
[Round "4"]
[White "Grindaveci"]
[Black "Crazy_girl99"]
[Result "0-1"]
[WhiteElo "2427"]
[BlackElo "2617"]
[TimeControl "180+1"]
[EndTime "8:34:13 PST"]
[Termination "Crazy_girl99 won by resignation"]

1. e4 {[%clk 0:02:59.7]} 1... e5 {[%clk 0:02:59.9]} 2. Nf3 {[%clk 0:02:59.8]}
2... Nc6 {[%clk 0:03:00.4]} 3. Bc4 {[%clk 0:03:00.1]} 3... Nf6 {[%clk
0:02:59.3]} 4. d3 {[%clk 0:02:59.6]} 4... Bc5 {[%clk 0:02:59.5]} 5. O-O {[%clk
0:02:59.3]} 5... d6 {[%clk 0:02:59.4]} 6. c3 {[%clk 0:02:59.7]} 6... a6 {[%clk
0:02:59.4]} 7. b4 {[%clk 0:02:58.6]} 7... Ba7 {[%clk 0:02:59.1]} 8. h3 {[%clk
0:02:56.2]} 8... h6 {[%clk 0:02:58.8]} 9. Bb3 {[%clk 0:02:50.9]} 9... O-O {[%clk
0:02:58.1]} 10. Nbd2 {[%clk 0:02:49.2]} 10... Nh5 {[%clk 0:02:56.4]} 11. Re1
{[%clk 0:02:44.9]} 11... Nf4 {[%clk 0:02:56.4]} 12. Nf1 {[%clk 0:02:44.4]} 12...
Qf6 {[%clk 0:02:56.6]} 13. Be3 {[%clk 0:02:40.3]} 13... Ne7 {[%clk 0:02:51.3]}
14. Bxa7 {[%clk 0:02:38.5]} 14... Rxa7 {[%clk 0:02:49.4]} 15. Ne3 {[%clk
0:02:24.1]} 15... Neg6 {[%clk 0:02:48.8]} 16. Kh2 {[%clk 0:02:21]} 16... c6
{[%clk 0:02:48.1]} 17. Qd2 {[%clk 0:02:16.8]} 17... Nxh3 {[%clk 0:02:46.1]} 18.
Nxe5 {[%clk 0:02:06.2]} 18... Qxe5+ {[%clk 0:02:44.8]} 0-1

[Event "Early-Titled-Tuesday-Blitz-February-06-2024"]
[Site "Chess.com"]
[Date "2024.02.06"]
[Round "4"]
[White "ImportedItalianMaple"]
[Black "Suleyman_Chess06"]
[Result "0-1"]
[WhiteElo "2475"]
[BlackElo "2663"]
[TimeControl "180+1"]
[EndTime "8:34:48 PST"]
[Termination "Suleyman_Chess06 won by resignation"]

1. Nf3 {[%clk 0:03:00.9]} 1... d5 {[%clk 0:02:59.8]} 2. g3 {[%clk 0:03:00.1]}
2... c6 {[%clk 0:03:00.3]} 3. Bg2 {[%clk 0:03:00.5]} 3... Bf5 {[%clk 0:03:01]}
4. O-O {[%clk 0:03:00]} 4... Nf6 {[%clk 0:03:01.6]} 5. d3 {[%clk 0:03:00.1]}
5... e6 {[%clk 0:03:02.3]} 6. Nh4 {[%clk 0:02:58.6]} 6... Bg6 {[%clk 0:03:01.9]}
7. Nxg6 {[%clk 0:02:57.8]} 7... hxg6 {[%clk 0:03:02.8]} 8. Nd2 {[%clk
0:02:56.4]} 8... Nbd7 {[%clk 0:03:03.1]} 9. e4 {[%clk 0:02:56.4]} 9... Be7
{[%clk 0:03:03.3]} 10. Qe2 {[%clk 0:02:56.4]} 10... Qc7 {[%clk 0:03:02.8]} 11.
Re1 {[%clk 0:02:50]} 11... Bc5 {[%clk 0:02:44.9]} 12. e5 {[%clk 0:02:41.9]}
12... Nxe5 {[%clk 0:02:44.9]} 13. Qxe5 {[%clk 0:02:16.7]} 13... Bxf2+ {[%clk
0:02:44.4]} 14. Kf1 {[%clk 0:02:13.3]} 14... Qb6 {[%clk 0:02:44.2]} 15. Re2
{[%clk 0:02:10]} 15... Ng4 {[%clk 0:02:40.6]} 0-1